fUSD/lending_fUSD_20241225
["ID","MTS","AMOUNT","RATE_DAILY","PERIOD"]
[346656318,1735153852547,-377.68,0.00012809,2]
[346656319,1735153852556,-677.04,0.00012809,2]
[346656320,1735153852567,-500.0,0.00012809,2]
[346656321,1735153852578,-500.0,0.00012809,2]
[346656322,1735153852588,-500.0,0.00012809,2]
[346656323,1735153852596,-381.64,0.00012809,2]
[346656324,1735153852607,-500.0,0.00012809,2]
[346656325,1735153852617,-500.0,0.00012809,2]
[346656326,1735153852626,-500.0,0.00012809,2]
[346656327,1735153852636,-679.5,0.00012809,2]
[346656328,1735153852645,-500.0,0.00012809,2]
[346656329,1735153852654,-500.0,0.00012809,2]
[346656330,1735153852663,-583.61,0.00012809,2]
[346656331,1735153852673,-500.0,0.00012809,2]
[346656332,1735153852682,-500.0,0.00012809,2]
[346656333,1735153852691,-445.04,0.00012809,2]
[346656334,1735153852700,-234.48,0.00012809,2]
[346656335,1735153852709,-500.0,0.00012809,2]
[346656336,1735153852719,-655.14,0.00012809,2]
[346656337,1735153852728,-500.0,0.00012809,2]
[346656338,1735153852738,-500.0,0.00012809,2]
[346656339,1735153852747,-500.0,0.00012809,2]
[346656340,1735153852756,-500.0,0.00012809,2]
[346656341,1735153852766,-500.0,0.00012809,2]
[346656342,1735153852775,-569.87,0.00012809,2]
[346656343,1735153852783,-500.0,0.00012809,2]
[346656344,1735153852794,-500.0,0.00012809,2]
[346656345,1735153852803,-500.0,0.00012809,2]
[346656346,1735153852813,-500.0,0.00012809,2]
[346656347,1735153852823,-1151.14,0.00012809,2]
[346656348,1735153852832,-548.5,0.00012809,2]
[346656349,1735153852842,-500.0,0.00012809,2]
[346656350,1735153852852,-542.84,0.00012809,2]
[346656351,1735153852862,-500.0,0.00012809,2]
[346656352,1735153852871,-630.71,0.00012809,2]
[346656353,1735153852879,-500.0,0.00012809,2]
[346656354,1735153852891,-610.6,0.00012809,2]
[346656355,1735153852899,-777.89,0.00012809,2]
[346656356,1735153852911,-500.0,0.00012809,2]
[346656357,1735153852922,-678.57,0.00012809,2]
[346656358,1735153852931,-154.4,0.00012809,2]
[346656359,1735153852940,-500.0,0.00012809,2]
[346656360,1735153852949,-1090.73,0.00012809,2]
[346656361,1735153852959,-500.0,0.00012809,2]
[346656362,1735153852969,-2229.48,0.00012809,2]
[346656363,1735153852980,-668.23,0.00012809,2]
[346656364,1735153852990,-1286.93,0.00012809,2]
[346656365,1735153853007,-500.0,0.00012809,2]
[346656366,1735153853025,-298.72,0.00012809,2]
[346656367,1735153853038,-1926.83,0.00012809,2]
[346656368,1735153853054,-500.0,0.00012809,2]
[346656369,1735153853069,-500.0,0.00012809,2]
[346656370,1735153853085,-162.1,0.00012809,2]
[346656371,1735153853099,-500.0,0.00012809,2]
[346656372,1735153853111,-4039.1,0.00012809,2]
[346656373,1735153853124,-500.0,0.00012809,2]
[346656374,1735153853138,-500.0,0.00012809,2]
[346656375,1735153853151,-500.0,0.00012809,2]
[346656376,1735153853166,-500.0,0.00012809,2]
[346656377,1735153853180,-500.0,0.00012809,2]
[346656378,1735153853197,-1092.17,0.00012809,2]
[346656379,1735153853213,-3305.98,0.00012809,2]
[346656380,1735153853227,-160.08,0.00012809,2]
[346656381,1735153853241,-500.0,0.00012809,2]
[346656382,1735153853256,-1887.28,0.00012809,2]
[346656383,1735153853271,-500.0,0.00012809,2]
[346656384,1735153853285,-500.0,0.00012809,2]
[346656385,1735153853295,-967.87,0.00012809,2]
[346656386,1735153853307,-2507.24,0.00012809,2]
[346656387,1735153853324,-500.0,0.00012809,2]
[346656388,1735153853335,-500.0,0.00012809,2]
[346656389,1735153853346,-500.0,0.00012809,2]
[346656390,1735153853360,-500.0,0.00012809,2]
[346656391,1735153853375,-1082.92,0.00012809,2]
[346656392,1735153853386,-500.0,0.00012809,2]
[346656393,1735153853399,-627.34,0.00012809,2]
[346656394,1735153853412,-500.0,0.00012809,2]
[346656395,1735153853426,-500.0,0.00012809,2]
[346656396,1735153853440,-500.0,0.00012809,2]
[346656397,1735153853452,-500.0,0.00012809,2]
[346656398,1735153853465,-500.0,0.00012809,2]
[346656399,1735153853478,-500.0,0.00012809,2]
[346656400,1735153853490,-348.27964236,0.00012809,2]
[346656401,1735153853502,-500.0,0.00012809,2]
[346656402,1735153853517,-2707.34,0.00012809,2]
[346656403,1735153853529,-2473.94,0.00012809,2]
[346656404,1735153853541,-500.0,0.00012809,2]
[346656405,1735153853553,-500.0,0.00012809,2]
[346656406,1735153853565,-500.0,0.00012809,2]
[346656407,1735153853577,-500.0,0.00012809,2]
[346656408,1735153853589,-2841.81,0.00012809,2]
[346656409,1735153853602,-500.0,0.00012809,2]
[346656410,1735153853616,-500.0,0.00012809,2]
[346656411,1735153853628,-500.0,0.00012809,2]
[346656412,1735153853642,-500.0,0.00012809,2]
[346656413,1735153853654,-500.0,0.00012809,2]
[346656414,1735153853667,-500.0,0.00012809,2]
[346656415,1735153853678,-500.0,0.00012809,2]
[346656416,1735153853691,-589.89755545,0.00012809,2]
[346656417,1735153853703,-500.0,0.00012809,2]
[346656418,1735153853715,-500.0,0.00012809,2]
[346656419,1735153853727,-500.0,0.00012809,2]
[346656420,1735153853740,-500.0,0.00012809,2]
[346656421,1735153853753,-500.0,0.00012809,2]
[346656422,1735153853766,-500.0,0.00012809,2]
[346656423,1735153853778,-500.0,0.00012809,2]
[346656424,1735153853791,-736.25,0.00012809,2]
[346656425,1735153853804,-745.27,0.00012809,2]
[346656426,1735153853816,-596.11,0.00012809,2]
[346656427,1735153853828,-500.0,0.00012809,2]
[346656428,1735153853842,-500.0,0.00012809,2]
[346656429,1735153853854,-500.0,0.00012809,2]
[346656430,1735153853866,-500.0,0.00012809,2]
[346656431,1735153853878,-500.0,0.00012809,2]
[346656432,1735153853892,-500.0,0.00012809,2]
[346656433,1735153853904,-500.0,0.00012809,2]
[346656434,1735153853916,-500.0,0.00012809,2]
[346656435,1735153853929,-500.0,0.00012809,2]
[346656436,1735153853942,-500.0,0.00012809,2]
[346656437,1735153853956,-500.0,0.00012809,2]
[346656438,1735153853968,-500.0,0.00012809,2]
[346656439,1735153853981,-500.0,0.00012809,2]
[346656440,1735153853993,-500.0,0.00012809,2]
[346656441,1735153854006,-500.0,0.00012809,2]
[346656442,1735153854019,-500.0,0.00012809,2]
[346656443,1735153854032,-500.0,0.00012809,2]
[346656444,1735153854045,-729.8,0.00012809,2]
[346656445,1735153854057,-500.0,0.00012809,2]
[346656446,1735153854069,-500.0,0.00012809,2]
[346656447,1735153854083,-500.0,0.00012809,2]
[346656448,1735153854096,-500.0,0.00012809,2]
[346656449,1735153854108,-500.0,0.00012809,2]
[346656450,1735153854121,-550.31,0.00012809,2]
[346656451,1735153854133,-500.0,0.00012809,2]
[346656452,1735153854145,-1124.35,0.00012809,2]
[346656453,1735153854157,-500.0,0.00012809,2]
[346656454,1735153854170,-163.25,0.00012809,2]
[346656455,1735153854181,-1135.37,0.00012809,2]
[346656456,1735153854196,-500.0,0.00012809,2]
[346656457,1735153854208,-403.71950803,0.00012809,2]
[346656458,1735153854220,-500.0,0.00012809,2]
[346656459,1735153854233,-500.0,0.00012809,2]
[346656460,1735153854245,-500.0,0.00012809,2]
[346656461,1735153854258,-500.0,0.00012809,2]
[346656462,1735153854270,-500.0,0.00012809,2]
[346656463,1735153854283,-500.0,0.00012809,2]
[346656464,1735153854295,-500.0,0.00012809,2]
[346656465,1735153854307,-1381.17,0.00012809,2]
[346656466,1735153854319,-854.47,0.00012809,2]
[346656467,1735153854331,-1157.47,0.00012809,2]
[346656468,1735153854343,-500.0,0.00012809,2]
[346656469,1735153854355,-500.0,0.00012809,2]
[346656470,1735153854366,-500.0,0.00012809,2]
[346656471,1735153854378,-500.0,0.0001281,2]
[346656472,1735153854390,-500.0,0.0001281,2]
[346656473,1735153854402,-500.0,0.0001281,2]
[346656474,1735153854414,-252.33,0.0001281,2]
[346656475,1735153854425,-500.0,0.0001281,2]
[346656476,1735153854437,-500.0,0.0001281,2]
[346656477,1735153854449,-500.0,0.0001281,2]
[346656478,1735153854460,-500.0,0.0001281,2]
[346656479,1735153854472,-500.0,0.0001281,2]
[346656480,1735153854484,-615.86,0.0001281,2]
[346656481,1735153854496,-500.0,0.0001281,2]
[346656482,1735153854508,-506.96,0.0001281,2]
[346656483,1735153854519,-500.0,0.0001281,2]
[346656484,1735153854532,-500.0,0.0001281,2]
[346656485,1735153854544,-500.0,0.0001281,2]
[346656486,1735153854556,-500.0,0.0001281,2]
[346656487,1735153854567,-500.0,0.0001281,2]
[346656488,1735153854579,-500.0,0.0001281,2]
[346656489,1735153854590,-500.0,0.0001281,2]
[346656490,1735153854603,-500.0,0.0001281,2]
[346656491,1735153854615,-500.0,0.0001281,2]
[346656492,1735153854627,-500.0,0.0001281,2]
[346656493,1735153854639,-500.0,0.0001281,2]
[346656494,1735153854651,-500.0,0.0001281,2]
[346656495,1735153854664,-500.0,0.0001281,2]
[346656496,1735153854676,-500.0,0.0001281,2]
[346656497,1735153854688,-524.10816443,0.0001281,2]
[346656498,1735153854700,-500.0,0.0001281,2]
[346656499,1735153854712,-500.0,0.0001281,2]
[346656500,1735153854724,-500.0,0.0001281,2]
[346656501,1735153854737,-500.0,0.0001281,2]
[346656502,1735153854748,-500.0,0.0001281,2]
[346656503,1735153854761,-500.0,0.0001281,2]
[346656504,1735153854771,-500.0,0.0001281,2]
[346656505,1735153855022,-549.77,0.0001281,2]
[346656506,1735153855036,-500.0,0.0001281,2]
[346656507,1735153855046,-500.0,0.0001281,2]
[346656508,1735153855056,-500.0,0.0001281,2]
[346656509,1735153855066,-500.0,0.0001281,2]
[346656510,1735153855075,-250.24,0.0001281,2]
[346656511,1735153855085,-500.0,0.0001281,2]
[346656512,1735153855094,-500.0,0.0001281,2]
[346656513,1735153855103,-559.51,0.0001281,2]
[346656514,1735153855113,-500.0,0.0001281,2]
[346656515,1735153855122,-500.0,0.0001281,2]
[346656516,1735153855131,-500.0,0.0001281,2]
[346656517,1735153855140,-992.35,0.0001281,2]
[346656518,1735153855149,-500.0,0.0001281,2]
[346656519,1735153855158,-500.0,0.0001281,2]
[346656520,1735153855167,-500.0,0.0001281,2]
[346656521,1735153855176,-500.0,0.0001281,2]
[346656522,1735153855188,-500.0,0.0001281,2]
[346656523,1735153855198,-500.0,0.0001281,2]
[346656524,1735153855207,-500.0,0.0001281,2]
[346656525,1735153855216,-500.0,0.0001281,2]
[346656526,1735153855227,-500.0,0.0001281,2]
[346656527,1735153855235,-500.0,0.0001281,2]
[346656528,1735153855244,-500.0,0.0001281,2]
[346656529,1735153855255,-500.0,0.0001281,2]
[346656530,1735153855267,-500.0,0.0001281,2]
[346656531,1735153855278,-500.0,0.0001281,2]
[346656532,1735153855288,-500.0,0.0001281,2]
[346656533,1735153855300,-232.13,0.0001281,2]
[346656534,1735153855309,-500.0,0.0001281,2]
[346656535,1735153855320,-500.0,0.0001281,2]
[346656536,1735153855330,-500.0,0.0001281,2]
[346656537,1735153855340,-500.0,0.0001281,2]
[346656538,1735153855349,-500.0,0.0001281,2]
[346656539,1735153855358,-500.0,0.0001281,2]
[346656540,1735153855368,-500.0,0.0001281,2]
[346656541,1735153855377,-500.0,0.0001281,2]
[346656542,1735153855386,-553.71,0.0001281,2]
[346656543,1735153855396,-500.0,0.0001281,2]
[346656544,1735153855406,-500.0,0.0001281,2]
[346656545,1735153855416,-500.0,0.0001281,2]
[346656546,1735153855428,-500.0,0.0001281,2]
[346656547,1735153855437,-500.0,0.0001281,2]
[346656548,1735153855446,-500.0,0.0001281,2]
[346656549,1735153855455,-500.0,0.0001281,2]
[346656550,1735153855464,-500.0,0.0001281,2]
[346656551,1735153855475,-500.0,0.0001281,2]
[346656552,1735153855485,-515.02,0.0001281,2]
[346656553,1735153855495,-500.0,0.0001281,2]
[346656554,1735153855504,-500.0,0.0001281,2]
[346656555,1735153855514,-500.0,0.0001281,2]
[346656556,1735153855523,-500.0,0.0001281,2]
[346656557,1735153855532,-500.0,0.0001281,2]
[346656558,1735153855541,-500.0,0.0001281,2]
[346656559,1735153855550,-500.0,0.0001281,2]
[346656560,1735153855561,-500.0,0.0001281,2]
[346656561,1735153855570,-651.95,0.0001281,2]
[346656562,1735153855579,-500.0,0.0001281,2]
[346656563,1735153855589,-500.0,0.0001281,2]
[346656564,1735153855597,-500.0,0.0001281,2]
[346656565,1735153855607,-500.0,0.0001281,2]
[346656566,1735153855617,-500.0,0.0001281,2]
[346656567,1735153855626,-500.0,0.0001281,2]
[346656568,1735153855635,-500.0,0.0001281,2]
[346656569,1735153855645,-500.0,0.0001281,2]
[346656570,1735153855654,-500.0,0.0001281,2]
[346656571,1735153855664,-500.0,0.0001281,2]
[346656572,1735153855673,-500.0,0.0001281,2]
[346656573,1735153855682,-500.0,0.0001281,2]
[346656574,1735153855692,-500.0,0.0001281,2]
[346656575,1735153855701,-500.0,0.0001281,2]
[346656576,1735153855712,-815.38,0.0001281,2]
[346656577,1735153855722,-500.0,0.0001281,2]
[346656578,1735153855731,-500.0,0.0001281,2]
[346656579,1735153855740,-907.6,0.0001281,2]
[346656580,1735153855750,-500.0,0.0001281,2]
[346656581,1735153855759,-500.0,0.0001281,2]
[346656582,1735153855768,-500.0,0.0001281,2]
[346656583,1735153855777,-754.88,0.0001281,2]
[346656584,1735153855786,-500.0,0.0001281,2]
[346656585,1735153855796,-500.0,0.0001281,2]
[346656586,1735153855806,-500.0,0.0001281,2]
[346656587,1735153855815,-2987.27,0.0001281,2]
[346656588,1735153855824,-500.0,0.0001281,2]
[346656589,1735153855834,-13586.92,0.0001281,2]
[346656590,1735153855843,-904.59,0.0001281,2]
[346656591,1735153855852,-1709.73,0.0001281,2]
[346656592,1735153855861,-500.0,0.0001281,2]
[346656593,1735153855870,-500.0,0.0001281,2]
[346656594,1735153855879,-1135.57,0.0001281,2]
[346656595,1735153855889,-330.86,0.0001281,2]
[346656596,1735153855898,-617.85,0.0001281,2]
[346656597,1735153855907,-500.0,0.0001281,2]
[346656598,1735153855916,-500.0,0.0001281,2]
[346656599,1735153855925,-1807.68,0.0001281,2]
[346656600,1735153855934,-500.0,0.0001281,2]
[346656601,1735153855943,-10656.41,0.0001281,2]
[346656602,1735153855952,-500.0,0.0001281,2]
[346656603,1735153855961,-500.0,0.0001281,2]
[346656604,1735153855971,-1343.39,0.0001281,2]
[346656605,1735153855980,-1154.39,0.0001281,2]
[346656606,1735153855991,-687.1,0.0001281,2]
[346656607,1735153856002,-1680.14,0.0001281,2]
[346656608,1735153856012,-500.0,0.0001281,2]
[346656609,1735153856021,-500.0,0.0001281,2]
[346656610,1735153856031,-1000.0,0.0001281,2]
[346656611,1735153856043,-805.37,0.0001281,2]
[346656612,1735153856052,-603.89,0.0001281,2]
[346656613,1735153856064,-2397.42,0.0001281,2]
[346656614,1735153856075,-1954.74,0.00012881,2]
[346656615,1735153856086,-150.0,0.00012881,2]
[346656616,1735153856095,-150.0,0.00012881,2]
[346656617,1735153856107,-300.0,0.00012881,2]
[346656618,1735153856116,-1000.0,0.000129,2]
[346656619,1735153856126,-272.1890686,0.000129,2]
[346656620,1735153856135,-9588.04428266,0.000129,2]
[346656621,1735153856144,-266.99719474,0.000129,2]
[346656622,1735153856153,-40000.0,0.0001299,2]
[346656623,1735153856164,-400000.0,0.0001299,2]
[346656624,1735153856175,-28005.52884214,0.00012996,2]
[346656625,1735153856188,-833.16916812,0.00012998,2]
[346656626,1735153856198,-211622.95156318,0.00012998,2]
[346656627,1735153856211,-252995.89914728,0.00012998,2]
[346656628,1735153856222,-500.0,0.00012999,2]
[346656629,1735153856235,-500.0,0.00012999,2]
[346656630,1735153856246,-500.0,0.00012999,2]
[346656631,1735153856256,-500.0,0.00012999,2]
[346656632,1735153856264,-543.37836841,0.00012999,2]
[346656633,1735153856272,-233.47331052,0.00013,2]
[346656634,1735153856280,-183340.6704362,0.00013,2]
[346656635,1735153856291,-1300742.92181558,0.00013,2]
[346656636,1735153856607,-1145.10006025,0.00013,2]
[346656637,1735153856619,-1675.425,0.00013,2]
[346656638,1735153856631,-1181.08180393,0.00013,2]
[346656639,1735153856722,-500.0,0.00012534,2]
[346656640,1735153856733,-850.31306839,0.00012536,2]
[346656641,1735153856746,-345.919,0.00012536,2]
[346656642,1735153856758,-66.66793161,0.00012536,2]
[346656643,1735153856768,-114608.3320679,0.00013,2]
[346656644,1735153856779,-6879.99999989,0.00013,2]
[346656645,1735153857709,-478.77647405,0.00011987,2]
[346656646,1735153857720,-368.27352595,0.00011987,2]
[346656647,1735153857730,-500.0,0.00011987,2]
[346656648,1735153857739,-500.0,0.00011987,2]
[346656649,1735153857748,-500.0,0.00011987,2]
[346656650,1735153857758,-500.0,0.00011987,2]
[346656651,1735153857767,-847.05,0.00012261,2]
[346656652,1735153857776,-500.0,0.00012261,2]
[346656653,1735153857785,-500.0,0.00012261,2]
[346656654,1735153857795,-500.0,0.00012261,2]
[346656655,1735153857804,-847.05,0.00012535,2]
[346656656,1735153857814,-500.0,0.00012535,2]
[346656657,1735153857824,-611.32,0.00012535,2]
[346656658,1735153857835,-150.30647404,0.00012535,2]
[346656659,1735153857847,-349.69352596,0.00012535,2]
[346656660,1735153857856,-381.15,0.00012808,2]
[346656661,1735153857865,-744.66804164,0.00012809,2]
[346656662,1735153857882,-102.38195836,0.00012809,2]
[346656663,1735153857891,-500.0,0.00012809,2]
[346656664,1735153857902,-1262.9,0.0001281,2]
[346656665,1735153857911,-647.93385044,0.00013,2]
[346656666,1735153857922,-2510.32778584,0.00013,2]
[346656667,1735153857933,-14609.92353959,0.00013,2]
[346656668,1735153857943,-17525.25743584,0.00013,2]
[346656669,1735153857955,-500.0,0.00013,2]
[346656670,1735153857965,-474.1866154,0.00013,2]
[346656671,1735153858177,-4865.79896752,0.00013,2]
[346656672,1735153858197,-8147.25,0.00013,2]
[346656673,1735153858224,-303715.5663615,0.00013,2]
[346656674,1735153858237,-4892.47178285,0.00013,2]
[346656675,1735153858251,-354.77469347,0.00013,2]
[346656676,1735153858264,-4000.0,0.00013,2]
[346656677,1735153858475,-500.0,0.00011987,2]
[346656678,1735153858484,-500.0,0.00012261,2]
[346656679,1735153858493,-681.35,0.00013,2]
[346656680,1735153858511,-401.04327963,0.00012535,2]
[346656681,1735153858523,-98.95672037,0.00012535,2]
[346656682,1735153858532,-839.13493007,0.00013,2]
[346656683,1735153858543,-1766.70000018,0.00013,2]
[346656684,1735153858554,-3719.27464023,0.00013,2]
[346656685,1735153858565,-37149.22557567,0.00013,2]
[346656686,1735153858577,-1105.33987344,0.00013,2]
[346656687,1735153858588,-5274.85308883,0.00013,2]
[346656688,1735153858599,-299.94077233,0.00013,2]
[346656689,1735153858611,-522.09525,0.00013,2]
[346656690,1735153858622,-31573.24565499,0.00013,2]
[346656691,1735153859185,-500.0,0.00011986,2]
[346656692,1735153859195,-500.0,0.00011987,2]
[346656693,1735153859205,-500.0,0.00011987,2]
[346656694,1735153859214,-500.0,0.0001226,2]
[346656695,1735153859224,-500.0,0.00012261,2]
[346656696,1735153859234,-500.0,0.00012261,2]
[346656697,1735153859244,-500.0,0.00012534,2]
[346656698,1735153859253,-500.0,0.00012535,2]
[346656699,1735153859263,-500.0,0.00012535,2]
[346656700,1735153859273,-500.0,0.00012808,2]
[346656701,1735153859282,-22923.12809127,0.00013,2]
[346656702,1735153859304,-27475.000004,0.00013,2]
[346656703,1735153859315,-26938.54496786,0.00013,2]
[346656704,1735153859326,-2353.68551082,0.00013,2]
[346656705,1735153859337,-1292.51593754,0.00013,2]
[346656706,1735153859348,-1715.0,0.00013,2]
[346656707,1735153859361,-1950.0,0.00013,2]
[346656708,1735153859372,-5401.82404035,0.00013,2]
[346656709,1735153859383,-255.80783742,0.00013,2]
[346656710,1735153859394,-8224.6500002,0.00013,2]
[346656711,1735153859406,-1984.76999992,0.00013,2]
[346656712,1735153859421,-1320.05848825,0.00013,2]
[346656713,1735153859653,-18881.37983475,0.00013,2]
[346656714,1735153859665,-376629.82896226,0.00013,2]
[346656715,1735153859676,-1111.59069481,0.00013,2]
[346656716,1735153859687,-135078.31163812,0.00013,2]
[346656717,1735153859705,-500.0,0.00011987,2]
[346656718,1735153859714,-3571.61726121,0.00013,2]
[346656719,1735153859725,-611.2873909,0.00013,2]
[346656720,1735153859736,-1065.83165509,0.00013,2]
[346656721,1735153859747,-996.32490086,0.00013,2]
[346656722,1735153859758,-26906.84946557,0.00013,2]
[346656723,1735153859769,-1543.53875252,0.00013,2]
[346656724,1735153859780,-12657.33173397,0.00013,2]
[346656725,1735153859793,-7391.51999648,0.00013,2]
[346656726,1735153859807,-4366.0,0.00013,2]
[346656727,1735153859818,-1027.17,0.00013,2]
[346656728,1735153859828,-333.3875295,0.00013,2]
[346656729,1735153859846,-32125.09595127,0.00013,2]
[346656730,1735153859858,-4908.924,0.00013,2]
[346656731,1735153859870,-42348.0110658,0.00013,2]
[346656732,1735153859881,-58922.99999518,0.00013,2]
[346656733,1735153859892,-3371.98347629,0.00013,2]
[346656734,1735153859903,-50000.11974001,0.00013,2]
[346656735,1735153859921,-500.0,0.00012261,2]
[346656736,1735153859930,-10844.59220339,0.00013,2]
[346656737,1735153859941,-3268.08076739,0.00013,2]
[346656738,1735153859952,-40332.01828711,0.00013,2]
[346656739,1735153859964,-651.686,0.00013,2]
[346656748,1735154630390,516.14,8.918e-05,2]
[346656749,1735154759975,150.0,0.00024929,60]
[346656750,1735154806129,-253.62,0.00010721,2]
[346656751,1735154806152,-1000.0,0.00010761,2]
[346656752,1735154806178,-201.21,0.00011182,2]
[346656753,1735154806202,-203.89,0.00011182,2]
[346656754,1735154806227,-126.6299021,0.00011182,2]
[346656769,1735155031876,-2137.83260465,0.00010722,2]
[346656770,1735155031888,-2988.87709326,0.00010722,2]
[346656771,1735155031900,-2497.90030209,0.00010722,2]
[346656772,1735155031910,-76.7000979,0.00011182,2]
[346656773,1735155031920,-201.83,0.00011182,2]
[346656774,1735155031929,-203.9,0.00011182,2]
[346656775,1735155031939,-200.15,0.00011182,2]
[346656776,1735155031949,-200.19,0.00011182,2]
[346656777,1735155031959,-516.14,0.00011182,2]
[346656778,1735155031969,-161.82,0.00011428,2]
[346656779,1735155031978,-203.11,0.00011428,2]
[346656780,1735155031987,-200.03,0.00011428,2]
[346656781,1735155031997,-200.93,0.00011428,2]
[346656782,1735155032007,-200.24,0.00011428,2]
[346656783,1735155032016,-200.17,0.00011428,2]
[346656784,1735155032025,-201.48,0.00011428,2]
[346656785,1735155032035,-202.46,0.00011428,2]
[346656786,1735155032044,-202.32,0.00011428,2]
[346656787,1735155032053,-203.78,0.00011428,2]
[346656788,1735155032063,-202.61,0.00011429,2]
[346656789,1735155032072,-202.71,0.00011429,2]
[346656790,1735155032082,-203.39,0.0001143,2]
[346656791,1735155032092,-202.66,0.00011431,2]
[346656792,1735155032101,-200.24,0.00011434,2]
[346656793,1735155032111,-202.29,0.00011439,2]
[346656794,1735155032120,-200.35,0.00011447,2]
[346656795,1735155032131,-200.02,0.00011463,2]
[346656796,1735155032140,-203.21,0.00011491,2]
[346656797,1735155032149,-22404.42307371,0.00011493,2]
[346656798,1735155032159,-183.03,0.00011546,2]
[346656799,1735155032168,-200.02,0.00011574,2]
[346656800,1735155032178,-201.08,0.00011599,2]
[346656801,1735155032188,-203.38,0.00011645,2]
[346656802,1735155032197,-200.79,0.00011645,2]
[346656803,1735155032206,-201.17,0.00011645,2]
[346656804,1735155032216,-250.0,0.00011646,2]
[346656805,1735155032225,-615.10833277,0.00011885,2]
[346656806,1735155032235,-2500.0,0.00011886,2]
[346656807,1735155032245,-201.36,0.00011887,2]
[346656808,1735155032254,-202.36,0.00011887,2]
[346656809,1735155032264,-202.18,0.00011887,2]
[346656810,1735155032273,-200.72,0.00011887,2]
[346656811,1735155032283,-200.53,0.00011887,2]
[346656812,1735155032292,-203.59,0.00011887,2]
[346656813,1735155032302,-201.38,0.00011887,2]
[346656814,1735155032312,-200.97,0.00011887,2]
[346656815,1735155032321,-201.4,0.00011887,2]
[346656816,1735155032331,-200.19,0.00011887,2]
[346656817,1735155032341,-200.25,0.00011887,2]
[346656819,1735155032350,-203.92,0.00011887,2]
[346656822,1735155032361,-200.35,0.00011887,2]
[346656824,1735155032370,-202.6,0.00011887,2]
[346656825,1735155032379,-200.56,0.00011887,2]
[346656827,1735155032389,-201.8,0.00011887,2]
[346656829,1735155032399,-202.89,0.00011887,2]
[346656830,1735155032408,-202.07,0.00011887,2]
[346656831,1735155032417,-202.54,0.00011887,2]
[346656832,1735155032427,-202.39,0.00011887,2]
[346656833,1735155032436,-1100.0,0.00011972,2]
[346656834,1735155032446,-500.0,0.00011972,2]
[346656835,1735155032456,-990.62,0.00011985,2]
[346656836,1735155032465,-702.91,0.00011985,2]
[346656837,1735155032474,-578.82,0.00011985,2]
[346656838,1735155032484,-500.0,0.00011985,2]
[346656839,1735155032493,-1410.92,0.00011985,2]
[346656840,1735155032502,-1610.84,0.00011985,2]
[346656841,1735155032511,-500.0,0.00011985,2]
[346656842,1735155032521,-2250.15,0.00011985,2]
[346656843,1735155032530,-500.0,0.00011985,2]
[346656844,1735155032539,-1103.41,0.00011985,2]
[346656845,1735155032550,-7282.13,0.00011985,2]